lending/lending_fUSD_20260110
["ID","MTS","AMOUNT","RATE_DAILY","PERIOD"]
[401261877,1768080645706,-1500.0,0.00021618,2]
[401261879,1768080645715,-5000.0,0.00021918,2]
[401261881,1768080645725,-800.0,0.00021918,2]
[401261883,1768080645735,-800.0,0.00021918,2]
[401261885,1768080645744,-800.0,0.00021918,2]
[401261887,1768080645754,-800.0,0.00021918,2]
[401261889,1768080645763,-800.0,0.00021918,2]
[401261891,1768080645772,-800.0,0.00021918,2]
[401261893,1768080645780,-800.0,0.00021918,2]
[401261896,1768080645790,-800.0,0.00021918,2]
[401261899,1768080645800,-800.0,0.00021918,2]
[401261901,1768080645809,-800.0,0.00021918,2]
[401261903,1768080645819,-800.0,0.00021918,2]
[401261905,1768080645828,-800.0,0.00021918,2]
[401261907,1768080645839,-800.0,0.00021918,2]
[401261909,1768080645848,-800.0,0.00021918,2]
[401261911,1768080645857,-800.0,0.00021918,2]
[401261913,1768080645867,-800.0,0.00021918,2]
[401261915,1768080645876,-150.0,0.00021918,2]
[401261917,1768080645885,-500.0,0.00021918,2]
[401261918,1768080645894,-500.0,0.00021918,2]
[401261920,1768080645905,-500.0,0.00021918,2]
[401261922,1768080645916,-500.0,0.00021918,2]
[401261925,1768080645927,-500.0,0.00021918,2]
[401261927,1768080645938,-500.0,0.00021918,2]
[401261929,1768080645947,-500.0,0.00021918,2]
[401261931,1768080645957,-500.0,0.00021918,2]
[401261933,1768080645966,-500.0,0.00021918,2]
[401261935,1768080645977,-500.0,0.00021918,2]
[401261937,1768080645987,-500.0,0.00021918,2]
[401261939,1768080645997,-500.0,0.00021918,2]
[401261941,1768080646007,-500.0,0.00021918,2]
[401261943,1768080646016,-500.0,0.00021918,2]
[401261945,1768080646025,-500.0,0.00021918,2]
[401261947,1768080646035,-500.0,0.00021918,2]
[401261949,1768080646044,-500.0,0.00021918,2]
[401261951,1768080646054,-500.0,0.00021918,2]
[401261953,1768080646064,-500.0,0.00021918,2]
[401261955,1768080646075,-500.0,0.00021918,2]
[401261957,1768080646085,-500.0,0.00021918,2]
[401261959,1768080646094,-500.0,0.00021918,2]
[401261961,1768080646103,-500.0,0.00021918,2]
[401261963,1768080646114,-500.0,0.00021918,2]
[401261965,1768080646124,-500.0,0.00021918,2]
[401261967,1768080646132,-500.0,0.00021918,2]
[401261969,1768080646142,-400.0,0.00021918,2]
[401261971,1768080646151,-500.0,0.00021918,2]
[401261973,1768080646161,-500.0,0.00021918,2]
[401261975,1768080646170,-500.0,0.00021918,2]
[401261977,1768080646180,-500.0,0.00021918,2]
[401261979,1768080646190,-7693.05,0.00022,7]
[401261981,1768080646199,-181975.22,0.00022,2]
[401261983,1768080646208,-22374.19671159,0.00022,4]
[401262045,1768080646771,-1323.042121,0.00020516,2]
[401262047,1768080646782,-6.957879,0.00020516,2]
[401262049,1768080646791,-497.06282911,0.00022,4]
[401262051,1768080646802,-280.87,0.00022,4]
[401262056,1768080646841,-269.79030303,0.00022,4]
[401262058,1768080646853,-17303.04350102,0.00022,4]
[401262080,1768080697454,500.0,0.00014402,2]
[401262082,1768080837649,171.0,6.2e-07,2]
[401262085,1768081108159,171.49,0.00012902,2]
[401262092,1768081667781,-166.66,0.00014534,2]
[401262094,1768081831943,-5918.288813,0.00014765,2]
[401262095,1768081831953,-166.66,0.0001484,2]
[401262096,1768081831964,-1200.0,0.00015134,2]
[401262097,1768081831974,-250.0,0.00015135,2]
[401262098,1768081831983,-195.0,0.00015135,2]
[401262099,1768081831993,-300.0,0.00015135,2]
[401262100,1768081832008,-166.66,0.00015146,2]
[401262101,1768081832018,-500.0,0.00015173,2]
[401262102,1768081832028,-4673.97971276,0.00015266,2]
[401262103,1768081832037,-27896.8910985,0.00015297,2]
[401262104,1768081832052,-2279.85668093,0.00015297,2]
[401262105,1768081832064,-4452.66369481,0.00015297,2]
[401262106,1768081832076,-684.47255759,0.00015297,2]
[401262107,1768081832115,-522198.40972195,0.00015297,2]
[401262108,1768081832130,-24382.5761121,0.00015297,2]
[401262109,1768081832142,-10060.20574382,0.00015297,2]
[401262110,1768081832154,-15121.08879661,0.00015297,2]
[401262111,1768081832166,-860.72578303,0.00015297,2]
[401262112,1768081832178,-364.72373208,0.00015297,2]
[401262113,1768081832218,-552.02375502,0.00015297,2]
[401262114,1768081832251,-288.10200457,0.00015297,2]
[401262122,1768081837971,-161.95604531,0.00015296,2]
[401262123,1768081837980,-500.0,0.00015296,2]
[401262124,1768081837990,-500.0,0.00015296,2]
[401262125,1768081837999,-376.70715553,0.00015296,2]
[401262126,1768081838010,-123.29284447,0.00015296,2]
[401262127,1768081838296,-500.0,0.00015296,2]
[401262130,1768081838332,-92.31715505,0.00015296,2]
[401262132,1768081838344,-407.68284495,0.00015296,2]
[401262134,1768081838354,-500.0,0.00015296,2]
[401262136,1768081838364,-500.0,0.00015296,2]
[401262139,1768081838374,-500.0,0.00015296,2]
[401262140,1768081838384,-500.0,0.00015296,2]
[401262142,1768081838394,-470.44694358,0.00015297,2]
[401262145,1768081838405,-435.24538884,0.00015297,2]
[401262147,1768081838416,-536.41410396,0.00015297,2]
[401262152,1768081838455,-10242.15576679,0.00015297,2]
[401262343,1768081840293,-452.65,0.00015297,2]
[401262722,1768081844139,-176.78370385,0.00015266,2]
[401262724,1768081844149,-179.78001979,0.00015266,2]
[401262726,1768081844158,-205.45058674,0.00015297,2]
[401262728,1768081844169,-887.1555738,0.00015297,2]
[401262831,1768081845136,-284.57598005,0.00015297,2]
[401262833,1768081845148,-263.95605343,0.00015297,2]
[401262840,1768081845200,-271969.27891928,0.00015297,2]
[401262847,1768081845262,-325.58015431,0.00015297,2]
[401262924,1768081846076,-104785.35084821,0.00015297,2]
[401262926,1768081846086,-195.0,0.00015366,2]
[401262928,1768081846095,-300.0,0.00015396,2]
[401262930,1768081846104,-172.0,0.00015396,2]
[401262932,1768081846114,-16969.56271576,0.00015397,2]
[401262936,1768081846144,-4786.26346561,0.00015397,2]
[401263255,1768082103216,522.34,0.00026116,120]
[401263256,1768082103604,522.34,0.00026145,120]
[401263257,1768082103941,522.34,0.00026175,120]
[401263258,1768082104279,522.34,0.00026207,120]
[401263259,1768082104610,522.34,0.00026241,120]
[401263260,1768082104942,522.34,0.00026277,120]
[401263261,1768082105291,522.34,0.00026314,120]
[401263262,1768082105646,522.34,0.00026355,120]
[401263263,1768082105991,522.34,0.00026398,120]
[401263264,1768082106328,522.34,0.00026444,120]
[401263265,1768082106661,522.34,0.00026494,120]
[401263266,1768082107592,522.34,0.00026548,120]
[401263267,1768082107678,522.34,0.00026607,120]
[401263268,1768082107782,522.34,0.00026673,120]
[401263269,1768082108229,522.34,0.00026746,120]
[401263270,1768082108560,522.34,0.0002683,120]
[401263271,1768082108882,522.34,0.00026926,120]
[401263272,1768082109464,522.34,0.0002704,120]
[401263273,1768082109829,522.34,0.00027179,120]
[401263274,1768082110160,522.34,0.00027359,120]
[401263275,1768082146457,-1500.0,0.0001483,2]
[401263276,1768082146487,-200.0,0.00014885,2]
[401263277,1768082146529,-300.0,0.00015172,2]
[401263278,1768082146569,-1200.0,0.00015172,2]
[401263288,1768082483927,2879.33418479,0.0001444,2]
[401263289,1768082483966,1119.21541804,0.0001444,2]
[401263290,1768082484005,281.83931929,0.0001444,2]
[401263291,1768082484047,1090.43412186,0.0001444,2]
[401263292,1768082533864,157.0,0.00027261,120]
[401263294,1768083016925,2627.15,7.252e-05,2]
[401263295,1768083017215,2002.03695602,7.619e-05,2]
[401263296,1768083017238,625.11304398,7.619e-05,2]
[401263297,1768083017450,2627.15,7.986e-05,2]
[401263298,1768083017647,2627.15,8.353e-05,2]
[401263299,1768083017839,2627.15,8.719e-05,2]
[401263300,1768083018060,1493.44695602,9.086e-05,2]
[401263301,1768083018085,1133.70304398,9.086e-05,2]
[401263302,1768083018283,2627.15,9.453e-05,2]
[401263303,1768083018466,2627.15,9.82e-05,2]
[401263304,1768083018663,2627.15,0.00010186,2]
[401263305,1768083018863,984.85695602,0.00010553,2]
[401263306,1768083018889,1642.29304398,0.00010553,2]
[401263307,1768083019077,2627.15,0.0001092,2]
[401263308,1768083019291,2627.15,0.00011286,2]
[401263309,1768083019513,2627.15,0.00011653,2]
[401263310,1768083019692,476.26695602,0.0001202,2]
[401263311,1768083019718,2150.88304398,0.0001202,2]
[401263312,1768083019882,2627.15,0.00012387,2]
[401263313,1768083020080,2627.15,0.00012753,2]
[401263314,1768083020268,2594.82695602,0.0001312,2]
[401263315,1768083020293,32.32304398,0.0001312,2]
[401263316,1768083020467,2627.15,0.00013487,2]
[401263317,1768083020737,2627.15,0.00013854,2]
[401263318,1768083020941,2627.15,0.0001422,2]
[401263320,1768083032231,-298.4562,0.0001473,2]
[401263321,1768083032241,-195.0,0.00014736,2]
[401263322,1768083032251,-500.0,0.00014778,2]
[401263323,1768083032261,-166.68,0.0001492,2]
[401263324,1768083032271,-521.0,0.00014959,2]
[401263325,1768083032281,-3414.9127686,0.00014986,2]
[401263326,1768083032294,-805.848,0.00014986,2]
[401263328,1768083032358,-4400.0939247,0.00014986,2]
[401263332,1768083032671,-139.68907767,0.00014986,2]
[401263333,1768083032682,-150.0,0.00015011,2]
[401263334,1768083032691,-500.0,0.00015011,2]
[401263335,1768083032701,-521.0,0.00015014,2]
[401263336,1768083032711,-150.0,0.00015066,2]
[401263337,1768083032722,-500.0,0.00015066,2]
[401263338,1768083032732,-521.0,0.00015069,2]
[401263339,1768083032747,-500.0,0.00015085,2]
[401263340,1768083032764,-500.0,0.00015085,2]
[401263341,1768083032779,-500.0,0.00015085,2]
[401263342,1768083032792,-500.0,0.00015085,2]
[401263343,1768083032801,-500.0,0.00015085,2]
[401263344,1768083032811,-500.0,0.00015085,2]
[401263345,1768083032823,-300.0,0.00015085,2]
[401263346,1768083032834,-1200.0,0.00015085,2]
[401263347,1768083032845,-300.0,0.00015085,2]
[401263348,1768083032855,-15886.70249929,0.00015086,2]
[401263349,1768083032868,-702.53762416,0.00015086,2]
[401263350,1768083032918,-3400.24881054,0.00015086,2]
[401263351,1768083032966,-500.0,0.00015085,2]
[401263352,1768083032975,-619.94014192,0.00015086,2]
[401263353,1768083032986,-472.63809177,0.00015086,2]
[401263354,1768083032998,-4879.82837852,0.00015086,2]
[401263355,1768083033055,-500.0,0.00015085,2]
[401263356,1768083033064,-100.11131002,0.00015086,2]
[401263357,1768083033076,-8108.35026846,0.00015086,2]
[401263358,1768083033088,-734.91789651,0.00015086,2]
[401263374,1768083038179,-490.0,0.00015085,2]
[401263382,1768083038239,-10.0,0.00015085,2]
[401263384,1768083038249,-500.0,0.00015085,2]
[401263386,1768083038260,-500.0,0.00015085,2]
[401263388,1768083038269,-500.0,0.00015085,2]
[401263390,1768083038279,-500.0,0.00015085,2]
[401263392,1768083038289,-500.0,0.00015085,2]
[401263394,1768083038304,-425.19024975,0.00015085,2]
[401263397,1768083038316,-74.80975025,0.00015085,2]
[401263399,1768083038327,-500.0,0.00015085,2]
[401263401,1768083038337,-500.0,0.00015085,2]
[401263402,1768083038347,-500.0,0.00015085,2]
[401263403,1768083038357,-500.0,0.00015085,2]
[401263404,1768083038367,-7.06566743,0.00015085,2]
[401263405,1768083038380,-592.93433257,0.00015085,2]
[401263406,1768083038391,-98.55275922,0.00015085,2]
[401263407,1768083038411,-302.64238328,0.00015085,2]
[401263573,1768083040329,-98.8048575,0.00015085,2]
[401263576,1768083040339,-500.0,0.00015085,2]
[401263578,1768083040349,-500.0,0.00015085,2]
[401263580,1768083040359,-500.0,0.00015085,2]
[401263582,1768083040369,-500.0,0.00015085,2]
[401263584,1768083040384,-500.0,0.00015085,2]
[401263586,1768083040395,-500.0,0.00015085,2]
[401263588,1768083040404,-3118.79514267,0.00015086,2]
[401263593,1768083040441,-961975.92983614,0.00015086,2]
[401263595,1768083040450,-3091.597,0.00015086,2]
[401263597,1768083040460,-60054.0902,0.00015086,2]
[401263599,1768083040469,-154.23035244,0.00015121,2]
[401263601,1768083040481,-500.0,0.00015121,2]
[401263603,1768083040490,-521.0,0.00015123,2]
[401263605,1768083040500,-3016.08962819,0.00015133,2]
[401263607,1768083040510,-500.0,0.00015173,2]
[401263609,1768083040519,-501.08291115,0.00015173,2]
[401263611,1768083040531,-500.0,0.00015173,2]
[401263613,1768083040540,-283.41773429,0.00015173,2]
[401263615,1768083040550,-412.86652117,0.00015173,2]
[401263617,1768083040559,-500.0,0.00015173,2]
[401263619,1768083040568,-500.0,0.00015173,2]
[401263621,1768083040579,-500.0,0.00015173,2]
[401263623,1768083040589,-500.0,0.00015173,2]
[401263624,1768083040598,-500.0,0.00015173,2]
[401263627,1768083040611,-500.0,0.00015173,2]
[401263629,1768083040621,-500.0,0.00015173,2]
[401263631,1768083040630,-500.0,0.00015173,2]
[401263632,1768083040640,-500.0,0.00015173,2]
[401263635,1768083040650,-500.0,0.00015173,2]
[401263637,1768083040660,-500.0,0.00015173,2]
[401263638,1768083040669,-500.0,0.00015173,2]
[401263640,1768083040679,-216.98407989,0.00015173,2]
[401263642,1768083040690,-500.0,0.00015173,2]
[401263644,1768083040699,-500.5237602,0.00015173,2]
[401263647,1768083040709,-166.31973401,0.00015173,2]
[401263648,1768083040719,-500.0,0.00015173,2]
[401263651,1768083040728,-169.12378955,0.00015173,2]
[401263652,1768083040738,-500.0,0.00015173,2]
[401263654,1768083040748,-500.0,0.00015173,2]
[401263657,1768083040758,-501.71026142,0.00015173,2]
[401263659,1768083040767,-163.36876424,0.00015173,2]
[401263661,1768083040777,-500.0,0.00015173,2]
[401263663,1768083040787,-500.0,0.00015173,2]
[401263665,1768083040801,-500.0,0.00015173,2]
[401263667,1768083040810,-500.0,0.00015173,2]
[401263669,1768083040819,-500.0,0.00015173,2]
[401263671,1768083040828,-500.0,0.00015173,2]
[401263673,1768083040839,-500.51555347,0.00015173,2]
[401263675,1768083040849,-486.6129027,0.00015173,2]
[401263677,1768083040858,-500.0,0.00015173,2]
[401263679,1768083040868,-500.0,0.00015173,2]
[401263680,1768083040878,-1011.8,0.00015173,2]
[401263682,1768083040890,-500.0,0.00015175,2]
[401263684,1768083040899,-79082.81422119,0.00015176,2]
[401263686,1768083040909,-521.0,0.00015178,2]
[401263688,1768083040920,-500.0,0.00015197,2]
[401263690,1768083040930,-632.12618077,0.00015197,2]
[401263692,1768083040940,-213.06652075,0.00015223,2]
[401263694,1768083040949,-500.0,0.0001523,2]
[401263696,1768083040958,-521.0,0.00015233,2]
[401263698,1768083040968,-1632.69240861,0.00015234,2]
[401263700,1768083040978,-164.394,0.00015234,2]
[401263702,1768083040987,-150.99,0.00015234,2]
[401263705,1768083040998,-999.99,0.00015234,2]
[401263707,1768083041010,-113193.67,0.00015234,2]
[401263709,1768083041019,-9999.99,0.00015234,2]
[401263711,1768083041029,-9999.99,0.00015234,2]
[401263713,1768083041038,-1275.597,0.00015234,2]
[401263715,1768083041048,-9999.99,0.00015234,2]
[401263717,1768083041057,-500.0,0.00015285,2]
[401263719,1768083041067,-521.0,0.00015288,2]
[401263721,1768083041077,-500.0,0.00015288,2]
[401263723,1768083041087,-500.0,0.00015288,2]
[401263725,1768083041097,-500.0,0.00015288,2]
[401263727,1768083041106,-500.0,0.00015288,2]
[401263729,1768083041116,-500.0,0.00015288,2]
[401263731,1768083041126,-500.0,0.00015288,2]
[401263733,1768083041135,-494.32740785,0.00015288,2]
[401263735,1768083041146,-500.0,0.00015288,2]
[401263737,1768083041155,-500.0,0.00015288,2]
[401263739,1768083041165,-590.74860506,0.00015288,2]
[401263741,1768083041175,-500.0,0.00015288,2]
[401263743,1768083041184,-200.0,0.00015288,2]
[401263745,1768083041194,-200.0,0.00015288,2]
[401263747,1768083041203,-151.0,0.00015288,2]
[401263749,1768083041214,-151.0,0.00015288,2]
[401263751,1768083041223,-151.0,0.00015288,2]
[401263786,1768083041546,-151.0,0.00015288,2]
[401263788,1768083041555,-151.0,0.00015288,2]
[401263791,1768083041565,-151.0,0.00015288,2]
[401263792,1768083041574,-151.0,0.00015288,2]
[401263794,1768083041584,-151.0,0.00015288,2]
[401263796,1768083041593,-151.0,0.00015288,2]
[401263799,1768083041603,-151.0,0.00015288,2]
[401263800,1768083041612,-151.0,0.00015288,2]
[401263802,1768083041622,-151.0,0.00015288,2]
[401263805,1768083041632,-500.0,0.00015296,2]
[401263807,1768083041641,-279.96,0.00015296,2]
[401263808,1768083041650,-500.0,0.00015296,2]
[401263811,1768083041661,-500.0,0.00015296,2]
[401263813,1768083041671,-500.0,0.00015296,2]
[401263814,1768083041681,-500.0,0.00015296,2]
[401263816,1768083041690,-500.0,0.00015296,2]
[401263818,1768083041700,-283.74533768,0.00015297,2]
[401263821,1768083041709,-829601.4304827,0.00015299,2]
[401263822,1768083041719,-2239.3084942,0.00015299,2]
[401263824,1768083041729,-500.0,0.0001534,2]
[401263826,1768083041738,-521.0,0.00015343,2]
[401263828,1768083041748,-345.99953711,0.00015395,2]
[401263831,1768083041758,-52514.20381863,0.00015397,2]
[401263833,1768083041768,-521.0,0.00015397,2]
[401263835,1768083041777,-1000.0,0.00015419,2]
[401263837,1768083041788,-33580.3823,0.00015419,2]
[401263839,1768083041798,-1011.8,0.00015447,2]
[401263841,1768083041808,-166.66,0.00015452,2]
[401263843,1768083041817,-521.0,0.00015452,2]
[401263844,1768083041826,-500.0,0.00015471,2]
[401263846,1768083041836,-521.0,0.00015507,2]
[401263848,1768083041847,-629.25,0.00015519,2]
[401263851,1768083041858,-660.71,0.00015544,2]
[401263852,1768083041867,-521.0,0.00015562,2]
[401263854,1768083041877,-521.0,0.00015617,2]
[401263855,1768083041886,-500.0,0.0001562,2]
[401263856,1768083041896,-500.0,0.0001562,2]
[401263857,1768083041906,-500.0,0.0001562,2]
[401263858,1768083041916,-500.0,0.0001562,2]
[401263859,1768083041925,-327.49083589,0.0001562,2]
[401263860,1768083041935,-500.0,0.0001562,2]
[401263861,1768083041944,-500.0,0.0001562,2]
[401263862,1768083041954,-521.0,0.00015671,2]
[401263863,1768083041964,-151.0,0.00015674,2]
[401263865,1768083041974,-151.0,0.00015674,2]
[401263867,1768083041984,-1000.0,0.00015721,2]
[401263869,1768083041993,-876.30281883,0.00015721,2]
[401263870,1768083042003,-1000.0,0.00015721,2]
[401263872,1768083042013,-1000.0,0.00015721,2]
[401263875,1768083042023,-500.0,0.00015721,2]
[401263876,1768083042032,-500.0,0.00015721,2]
[401263879,1768083042049,-500.0,0.00015721,2]
[401263882,1768083042066,-500.0,0.00015721,2]
[401263884,1768083042076,-1000.0,0.00015721,2]
[401263886,1768083042086,-1000.0,0.00015721,2]
[401263888,1768083042096,-1000.0,0.00015721,2]
[401263890,1768083042105,-1011.8,0.00015721,2]
[401263892,1768083042115,-500.0,0.00015726,2]
[401263894,1768083042124,-521.0,0.00015726,2]
[401263896,1768083042134,-500.0,0.00015745,2]
[401263898,1768083042144,-166.66,0.00015758,2]
[401263900,1768083042154,-521.0,0.00015781,2]
[401263902,1768083042164,-521.0,0.00015836,2]
[401263904,1768083042173,-500.0,0.00015836,2]
[401263906,1768083042184,-200.0,0.00015836,2]
[401263908,1768083042193,-200.0,0.00015836,2]
[401263910,1768083042203,-521.0,0.00015891,2]
[401263912,1768083042212,-521.0,0.00015945,2]
[401263914,1768083042223,-1011.8,0.00015995,2]
[401263916,1768083042233,-521.0,0.00016,2]
[401263918,1768083042243,-500.0,0.00016019,2]
[401263920,1768083042253,-166.66,0.00016064,2]
[401263922,1768083042263,-150.0,0.00016128,2]
[401263924,1768083042273,-8760.54377092,0.00016199,2]
[401263926,1768083042282,-195.0,0.00016203,2]
[401263928,1768083042292,-300.0,0.00016203,2]
[401263930,1768083042302,-300.0,0.00016203,2]
[401263932,1768083042311,-165.0,0.00016216,2]
[401263934,1768083042321,-1011.8,0.00016268,2]
[401263937,1768083042332,-500.0,0.00016268,2]
[401263939,1768083042342,-1500.0,0.00016268,2]
[401263941,1768083042351,-500.0,0.00016268,2]
[401263943,1768083042362,-3016.08962816,0.00016285,2]
[401263945,1768083042373,-500.0,0.00016293,2]
[401263947,1768083042383,-500.0,0.00016384,2]
[401263949,1768083042392,-200.0,0.00016384,2]
[401263951,1768083042403,-200.0,0.00016384,2]
[401263953,1768083042413,-428.53,0.00016389,2]
[401263955,1768083042422,-150.0,0.00016438,2]
[401263957,1768083042432,-500.0,0.00016438,2]
[401263960,1768083042442,-500.0,0.00016438,2]
[401263962,1768083042456,-500.0,0.00016438,2]
[401263964,1768083042467,-500.0,0.00016438,2]
[401263966,1768083042476,-500.0,0.00016438,2]
[401263968,1768083042486,-500.0,0.00016438,2]
[401263970,1768083042496,-500.0,0.00016438,2]
[401263972,1768083042506,-500.0,0.00016438,2]
[401263974,1768083042517,-500.0,0.00016438,2]
[401263976,1768083042529,-500.0,0.00016438,2]
[401263978,1768083042541,-500.0,0.00016438,2]
[401263980,1768083042551,-500.0,0.00016438,2]
[401263982,1768083042561,-500.0,0.00016438,2]
[401263984,1768083042571,-500.0,0.00016438,2]
[401263986,1768083042582,-500.0,0.00016438,2]
[401263988,1768083042592,-500.0,0.00016438,2]
[401263990,1768083042603,-500.0,0.00016438,2]
[401263992,1768083042613,-500.0,0.00016438,2]
[401263995,1768083042624,-500.0,0.00016438,2]
[401263997,1768083042634,-500.0,0.00016438,2]
[401263999,1768083042645,-500.0,0.00016438,2]
[401264001,1768083042655,-240.72137504,0.00016438,2]
[401264003,1768083042665,-500.0,0.00016438,2]
[401264005,1768083042676,-150.0,0.00016493,2]
[401264007,1768083042687,-420.0,0.00016508,2]
[401264009,1768083042696,-1011.8,0.00016542,2]
[401264011,1768083042706,-150.0,0.00016548,2]
[401264013,1768083042715,-1680.0,0.00016592,2]
[401264015,1768083042726,-150.0,0.00016602,2]
[401264017,1768083042735,-214.30783794,0.00016657,2]
[401264019,1768083042745,-1011.8,0.00016816,2]
[401264021,1768083042755,-274.38,0.00016986,2]
[401264023,1768083042766,-250.0,0.00017,2]
[401264025,1768083042776,-1011.85,0.0001709,2]
[401264027,1768083042786,-428.53,0.00017208,2]
[401264029,1768083042797,-166.68,0.00017382,2]
[401264031,1768083042807,-8760.54377092,0.00017411,2]
[401264034,1768083042818,-3016.08962816,0.00017437,2]
[401264036,1768083042829,-660.71,0.00017487,2]
[401264038,1768083042839,-500.0,0.00017697,2]
[401264040,1768083042848,-214.12448155,0.00017808,2]
[401264042,1768083042858,-500.0,0.00017973,2]
[401264044,1768083042869,-500.0,0.00017973,2]
[401264046,1768083042879,-1813.11,0.00018,7]
[401264048,1768083042889,-428.53,0.00018027,2]
[401264050,1768083042899,-587.0,0.00018066,2]
[401264052,1768083042909,-999.0,0.00018078,3]
[401264054,1768083042921,-177.9,0.000182,2]
[401264056,1768083042932,-2351.0,0.00018249,2]
[401264058,1768083042942,-250.0,0.00018369,2]
[401264060,1768083042952,-590.059,0.00018566,2]
[401264062,1768083042962,-6554.0,0.00018566,2]
[401264064,1768083042972,-2437.0,0.00018566,2]
[401264066,1768083042982,-3016.08962816,0.00018589,2]
[401264068,1768083042992,-8760.54377092,0.00018624,2]
[401264070,1768083043001,-340.93808744,0.00018654,2]
[401264072,1768083043011,-500.0,0.00018654,2]
[401264074,1768083043020,-415.79437634,0.00018654,2]
[401264076,1768083043030,-500.0,0.00018654,2]
[401264078,1768083043040,-239.65785409,0.00018654,2]
[401264080,1768083043050,-500.0,0.00018654,2]
[401264082,1768083043060,-500.0,0.00018654,2]
[401264084,1768083043069,-180.49634335,0.00018654,2]
[401264086,1768083043079,-500.0,0.00018654,2]
[401264088,1768083043088,-185109.1000429,0.00018655,2]
[401264090,1768083043098,-500.0,0.00018775,3]
[401264092,1768083043107,-428.53,0.00018847,2]
[401264094,1768083043117,-150.0,0.00018922,2]
[401264096,1768083043126,-150.0,0.00018922,2]
[401264098,1768083043135,-614.0,0.00018922,2]
[401264100,1768083043147,-1405.0,0.00018922,2]
[401264102,1768083043157,-3468.0,0.00018922,2]
[401264104,1768083043166,-505.0,0.00018922,2]
[401264106,1768083043175,-1266.0,0.00018922,2]
[401264108,1768083043185,-340.85177925,0.00019,2]
[401264110,1768083043195,-300.0,0.00019,2]
[401264112,1768083043204,-1000.0,0.000192,2]
[401264114,1768083043214,-41303.4231375,0.00019404,2]
[401264116,1768083043225,-660.71,0.0001943,2]
[401264118,1768083043234,-428.53,0.00019666,2]
[401264120,1768083043244,-3016.08962816,0.00019741,2]
[401264122,1768083043254,-279.0,0.0001977,2]
[401264124,1768083043264,-8760.54377092,0.00019837,2]
[401264126,1768083043274,-632.12618071,0.0001986,2]
[401264129,1768083043284,-150.0,0.00019973,2]
[401264131,1768083043294,-5167.83320543,0.0002,2]
[401264133,1768083043304,-150.0,0.0002,20]
[401264135,1768083043315,-3292.0,0.00020072,2]
[401264137,1768083043325,-500.0,0.000202,2]
[401264139,1768083043335,-500.0,0.00020201,2]
[401264141,1768083043344,-500.0,0.00020202,2]
[401264143,1768083043354,-499.9999,0.00020203,2]
[401264145,1768083043364,-2730.0,0.00020313,2]
[401264147,1768083043374,-250.0,0.00020521,2]
[401264149,1768083043384,-223.66,0.00020548,3]
[401264151,1768083043395,-3016.08962816,0.00020892,2]
[401264153,1768083043404,-350.0,0.00021,2]
[401264155,1768083043414,-8760.54377092,0.00021049,2]
[401264157,1768083043425,-350.0,0.00021068,2]
[401264159,1768083043437,-6369.1,0.0002137,2]
[401264161,1768083043446,-660.71,0.00021373,2]
[401264163,1768083043456,-151.0,0.00021432,2]